[Event "Titled Tuesday Blitz May 10 Early 2022"]
[White "Nagy, Gabor"]
[Black "Atakhan, Abtin"]
[WhiteFideId "737119"]
[BlackFideId "22502203"]
[WhiteElo "2569"]
[BlackElo "2094"]
[Result "1-0"]
[Round "11"]
[TimeControl "180+1"]
[Date "2022.05.10"]
[WhiteClock "0:01:31"]
[BlackClock "0:00:01"]

1. e4 {[%clk 0:03:00]}  c5 {[%clk 0:02:58]} 2. Nf3 {[%clk 0:03:01]}  Nc6 {[%clk 0:02:58]} 3. Nc3 {[%clk 0:03:00]}  g6 {[%clk 0:02:56]} 4. h4 {[%clk 0:02:59]}  Nf6 {[%clk 0:02:45]} 5. d4 {[%clk 0:02:58]}  cxd4 {[%clk 0:02:40]} 6. Nxd4 {[%clk 0:02:59]}  Bg7 {[%clk 0:02:33]} 7. Nxc6 {[%clk 0:02:58]}  dxc6 {[%clk 0:02:31]} 8. Qxd8+ {[%clk 0:02:59]}  Kxd8 {[%clk 0:02:32]} 9. Bf4 {[%clk 0:02:59]}  Nd7 {[%clk 0:02:21]} 10. Rh3 {[%clk 0:02:58]}  e5 {[%clk 0:02:19]} 11. Bg5+ {[%clk 0:02:57]}  f6 {[%clk 0:02:18]} 12. Bd2 {[%clk 0:02:57]}  Kc7 {[%clk 0:02:13]} 13. O-O-O {[%clk 0:02:55]}  Nb6 {[%clk 0:02:06]} 14. Rh1 {[%clk 0:02:53]}  Be6 {[%clk 0:02:02]} 15. b3 {[%clk 0:02:51]}  Rad8 {[%clk 0:02:01]} 16. h5 {[%clk 0:02:51]}  Bf7 {[%clk 0:01:52]} 17. Be2 {[%clk 0:02:50]}  f5 {[%clk 0:01:37]} 18. Bg5 {[%clk 0:02:48]}  Rxd1+ {[%clk 0:01:35]} 19. Rxd1 {[%clk 0:02:49]}  h6 {[%clk 0:01:36]} 20. Be7 {[%clk 0:02:48]}  Nc8 {[%clk 0:01:35]} 21. Bc5 {[%clk 0:02:44]}  b6 {[%clk 0:01:34]} 22. Ba3 {[%clk 0:02:42]}  Bf6 {[%clk 0:01:31]} 23. hxg6 {[%clk 0:02:41]}  Bxg6 {[%clk 0:01:32]} 24. exf5 {[%clk 0:02:41]}  Bxf5 {[%clk 0:01:33]} 25. Bd3 {[%clk 0:02:34]}  Bxd3 {[%clk 0:01:27]} 26. Rxd3 {[%clk 0:02:34]}  Rg8 {[%clk 0:01:27]} 27. Ne4 {[%clk 0:02:33]}  Be7 {[%clk 0:01:20]} 28. Bb2 {[%clk 0:02:32]}  Bg5+ {[%clk 0:01:11]} 29. Kd1 {[%clk 0:02:29]}  Re8 {[%clk 0:01:08]} 30. Ke2 {[%clk 0:02:20]}  b5 {[%clk 0:01:03]} 31. Bc3 {[%clk 0:02:17]}  Nb6 {[%clk 0:01:01]} 32. Nxg5 {[%clk 0:02:09]}  hxg5 {[%clk 0:01:01]} 33. Bd2 {[%clk 0:02:09]}  g4 {[%clk 0:00:55]} 34. Rg3 {[%clk 0:02:08]}  Rg8 {[%clk 0:00:54]} 35. Kd3 {[%clk 0:02:03]}  Kd6 {[%clk 0:00:47]} 36. Ke4 {[%clk 0:02:01]}  Ke6 {[%clk 0:00:37]} 37. f3 {[%clk 0:01:58]}  Nd5 {[%clk 0:00:37]} 38. fxg4 {[%clk 0:01:56]}  Nf6+ {[%clk 0:00:37]} 39. Kf3 {[%clk 0:01:56]}  Rf8 {[%clk 0:00:19]} 40. Ke3 {[%clk 0:01:47]}  Rg8 {[%clk 0:00:18]} 41. g5 {[%clk 0:01:46]}  Nh5 {[%clk 0:00:17]} 42. Rg4 {[%clk 0:01:43]}  Nf4 {[%clk 0:00:17]} 43. Ke4 {[%clk 0:01:40]}  Nd5 {[%clk 0:00:11]} 44. Rh4 {[%clk 0:01:40]}  Rg6 {[%clk 0:00:09]} 45. Rh6 {[%clk 0:01:39]}  Ne7 {[%clk 0:00:08]} 46. g4 {[%clk 0:01:39]}  a6 {[%clk 0:00:05]} 47. Be3 {[%clk 0:01:38]}  Rxh6 {[%clk 0:00:01]} 48. gxh6 {[%clk 0:01:38]}  Ng6 {[%clk 0:00:02]} 49. h7 {[%clk 0:01:38]}  Nh8 {[%clk 0:00:02]} 50. Bh6 {[%clk 0:01:35]}  Nf7 {[%clk 0:00:02]} 51. g5 {[%clk 0:01:31]}  Nh8 {[%clk 0:00:01]} 52. Bg7 {[%clk 0:01:31]}  Ng6 {[%clk 0:00:01]} 53. h8=Q {[%clk 0:01:31]} 1-0


[Site "https://www.chess.com"]

[Event "Titled Tuesday Blitz May 10 Early 2022"]
[White "Namitbir Singh Walia"]
[Black "Cunha, Lucas Aguiar"]
[WhiteFideId "35071068"]
[BlackFideId "2125404"]
[WhiteElo "1565"]
[BlackElo "2361"]
[Result "0-1"]
[Round "11"]
[TimeControl "180+1"]
[Date "2022.05.11"]
[WhiteClock "0:00:06"]
[BlackClock "0:00:45"]

1. e4 {[%clk 0:02:59]}  c5 {[%clk 0:03:00]} 2. Nf3 {[%clk 0:02:58]}  e6 {[%clk 0:03:00]} 3. d4 {[%clk 0:02:58]}  cxd4 {[%clk 0:03:01]} 4. Nxd4 {[%clk 0:02:59]}  Nc6 {[%clk 0:03:01]} 5. Nc3 {[%clk 0:02:56]}  Qc7 {[%clk 0:03:01]} 6. a3 {[%clk 0:02:55]}  a6 {[%clk 0:03:01]} 7. Be2 {[%clk 0:02:54]}  Nf6 {[%clk 0:03:01]} 8. Be3 {[%clk 0:02:54]}  Be7 {[%clk 0:02:57]} 9. O-O {[%clk 0:02:54]}  O-O {[%clk 0:02:58]} 10. f4 {[%clk 0:02:46]}  d6 {[%clk 0:02:58]} 11. Bf3 {[%clk 0:02:43]}  Re8 {[%clk 0:02:57]} 12. Kh1 {[%clk 0:02:43]}  Nxd4 {[%clk 0:02:54]} 13. Qxd4 {[%clk 0:02:39]}  e5 {[%clk 0:02:55]} 14. Qd3 {[%clk 0:02:31]}  exf4 {[%clk 0:02:51]} 15. Bxf4 {[%clk 0:02:32]}  Be6 {[%clk 0:02:51]} 16. Rad1 {[%clk 0:02:29]}  Rad8 {[%clk 0:02:49]} 17. Rfe1 {[%clk 0:02:23]}  b5 {[%clk 0:02:38]} 18. Nd5 {[%clk 0:01:59]}  Bxd5 {[%clk 0:02:31]} 19. exd5 {[%clk 0:02:00]}  Nd7 {[%clk 0:02:29]} 20. c3 {[%clk 0:01:49]}  Ne5 {[%clk 0:02:23]} 21. Bxe5 {[%clk 0:01:38]}  dxe5 {[%clk 0:02:24]} 22. a4 {[%clk 0:01:38]}  Qb8 {[%clk 0:02:19]} 23. axb5 {[%clk 0:01:37]}  axb5 {[%clk 0:02:20]} 24. Be2 {[%clk 0:01:32]}  b4 {[%clk 0:02:17]} 25. c4 {[%clk 0:01:32]}  g6 {[%clk 0:02:15]} 26. Rf1 {[%clk 0:01:29]}  f5 {[%clk 0:02:12]} 27. Qg3 {[%clk 0:01:20]}  Rf8 {[%clk 0:02:00]} 28. Qe3 {[%clk 0:01:10]}  Qc7 {[%clk 0:01:58]} 29. Ra1 {[%clk 0:00:51]}  Bc5 {[%clk 0:01:56]} 30. Qb3 {[%clk 0:00:48]}  e4 {[%clk 0:01:45]} 31. Ra6 {[%clk 0:00:40]}  Qe5 {[%clk 0:01:33]} 32. Qa4 {[%clk 0:00:32]}  Qxb2 {[%clk 0:01:29]} 33. Bd1 {[%clk 0:00:27]}  e3 {[%clk 0:01:25]} 34. Re6 {[%clk 0:00:24]}  Qd4 {[%clk 0:01:19]} 35. Qc6 {[%clk 0:00:22]}  Rf7 {[%clk 0:01:10]} 36. Be2 {[%clk 0:00:19]}  Kg7 {[%clk 0:01:03]} 37. Rd1 {[%clk 0:00:19]}  b3 {[%clk 0:00:50]} 38. Rxd4 {[%clk 0:00:13]}  Bxd4 {[%clk 0:00:51]} 39. Qb5 {[%clk 0:00:11]}  b2 {[%clk 0:00:51]} 40. Ra6 {[%clk 0:00:11]}  Rdd7 {[%clk 0:00:46]} 41. Bd3 {[%clk 0:00:06]}  Rb7 {[%clk 0:00:45]} 0-1


[Site "https://www.chess.com"]

[Event "Titled Tuesday Blitz May 10 Early 2022"]
[White "Needleman, Alejandro"]
[Black "Ajay Krishna, S"]
[WhiteFideId "100730"]
[BlackFideId "5096430"]
[WhiteElo "2351"]
[BlackElo "2247"]
[Result "0-1"]
[Round "11"]
[TimeControl "180+1"]
[Date "2022.05.11"]
[WhiteClock "0:00:22"]
[BlackClock "0:00:11"]

1. e4 {[%clk 0:03:00]}  c5 {[%clk 0:02:59]} 2. Nf3 {[%clk 0:03:00]}  d6 {[%clk 0:02:59]} 3. Bc4 {[%clk 0:03:00]}  e6 {[%clk 0:02:56]} 4. O-O {[%clk 0:02:59]}  Nf6 {[%clk 0:02:52]} 5. Re1 {[%clk 0:02:59]}  Nc6 {[%clk 0:02:50]} 6. c3 {[%clk 0:02:56]}  Be7 {[%clk 0:02:35]} 7. Bb3 {[%clk 0:02:56]}  O-O {[%clk 0:02:31]} 8. d4 {[%clk 0:02:56]}  cxd4 {[%clk 0:02:30]} 9. cxd4 {[%clk 0:02:56]}  d5 {[%clk 0:02:11]} 10. e5 {[%clk 0:02:56]}  Nd7 {[%clk 0:02:11]} 11. Nc3 {[%clk 0:02:57]}  b6 {[%clk 0:02:10]} 12. Bc2 {[%clk 0:02:52]}  Ba6 {[%clk 0:02:03]} 13. a4 {[%clk 0:02:52]}  Nb4 {[%clk 0:02:01]} 14. Bb1 {[%clk 0:02:52]}  Qc7 {[%clk 0:01:52]} 15. Nb5 {[%clk 0:02:50]}  Qc6 {[%clk 0:01:46]} 16. Bg5 {[%clk 0:02:42]}  Bxg5 {[%clk 0:01:25]} 17. Nxg5 {[%clk 0:02:43]}  h6 {[%clk 0:01:23]} 18. Qd2 {[%clk 0:02:27]}  Bxb5 {[%clk 0:01:14]} 19. Qxb4 {[%clk 0:02:26]}  Ba6 {[%clk 0:01:10]} 20. Nh3 {[%clk 0:02:18]}  Rfc8 {[%clk 0:01:07]} 21. Nf4 {[%clk 0:02:12]}  Qc4 {[%clk 0:00:52]} 22. Qd2 {[%clk 0:02:10]}  Qc7 {[%clk 0:00:37]} 23. h4 {[%clk 0:02:07]}  Nf8 {[%clk 0:00:31]} 24. Ra3 {[%clk 0:02:04]}  Qe7 {[%clk 0:00:30]} 25. h5 {[%clk 0:01:52]}  Rc7 {[%clk 0:00:27]} 26. Rg3 {[%clk 0:01:45]}  Kh8 {[%clk 0:00:19]} 27. Ne2 {[%clk 0:01:13]}  Rac8 {[%clk 0:00:17]} 28. Nc3 {[%clk 0:01:13]}  Qh4 {[%clk 0:00:15]} 29. Rh3 {[%clk 0:01:10]}  Qg4 {[%clk 0:00:15]} 30. Ree3 {[%clk 0:01:07]}  Rc4 {[%clk 0:00:15]} 31. Rd3 {[%clk 0:00:54]}  Rb4 {[%clk 0:00:13]} 32. Nb5 {[%clk 0:00:51]}  Bxb5 {[%clk 0:00:12]} 33. axb5 {[%clk 0:00:51]}  Rbc4 {[%clk 0:00:10]} 34. Kh2 {[%clk 0:00:46]}  Rc1 {[%clk 0:00:08]} 35. Rdg3 {[%clk 0:00:45]}  Qd1 {[%clk 0:00:05]} 36. Qxd1 {[%clk 0:00:43]}  Rxd1 {[%clk 0:00:06]} 37. Ba2 {[%clk 0:00:35]}  Rxd4 {[%clk 0:00:06]} 38. Rc3 {[%clk 0:00:33]}  Rc5 {[%clk 0:00:04]} 39. Rxc5 {[%clk 0:00:32]}  bxc5 {[%clk 0:00:05]} 40. Ra3 {[%clk 0:00:31]}  Rb4 {[%clk 0:00:05]} 41. Rxa7 {[%clk 0:00:31]}  Rxb2 {[%clk 0:00:06]} 42. Rxf7 {[%clk 0:00:27]}  Kg8 {[%clk 0:00:06]} 43. Rc7 {[%clk 0:00:27]}  Rxa2 {[%clk 0:00:05]} 44. b6 {[%clk 0:00:28]}  Rb2 {[%clk 0:00:05]} 45. b7 {[%clk 0:00:28]}  c4 {[%clk 0:00:06]} 46. Kg3 {[%clk 0:00:28]}  c3 {[%clk 0:00:06]} 47. Rxc3 {[%clk 0:00:25]}  Rxb7 {[%clk 0:00:05]} 48. Rc8 {[%clk 0:00:26]}  Kf7 {[%clk 0:00:05]} 49. f4 {[%clk 0:00:26]}  Nd7 {[%clk 0:00:05]} 50. Kf3 {[%clk 0:00:24]}  Rb3+ {[%clk 0:00:05]} 51. Kf2 {[%clk 0:00:24]}  Ke7 {[%clk 0:00:05]} 52. g4 {[%clk 0:00:24]}  d4 {[%clk 0:00:03]} 53. Rg8 {[%clk 0:00:23]}  Kf7 {[%clk 0:00:03]} 54. Rd8 {[%clk 0:00:24]}  Ke7 {[%clk 0:00:02]} 55. Rg8 {[%clk 0:00:23]}  Rb2+ {[%clk 0:00:02]} 56. Ke1 {[%clk 0:00:20]}  Kf7 {[%clk 0:00:02]} 57. Rd8 {[%clk 0:00:20]}  Rb7 {[%clk 0:00:03]} 58. Kd2 {[%clk 0:00:18]}  Nc5 {[%clk 0:00:03]} 59. f5 {[%clk 0:00:16]}  exf5 {[%clk 0:00:02]} 60. gxf5 {[%clk 0:00:17]}  Re7 {[%clk 0:00:02]} 61. e6+ {[%clk 0:00:15]}  Kf6 {[%clk 0:00:02]} 62. Rxd4 {[%clk 0:00:15]}  Nb3+ {[%clk 0:00:01]} 63. Ke3 {[%clk 0:00:14]}  Nxd4 {[%clk 0:00:02]} 64. Kxd4 {[%clk 0:00:15]}  Re8 {[%clk 0:00:03]} 65. Kd5 {[%clk 0:00:16]}  Re7 {[%clk 0:00:04]} 66. Kd6 {[%clk 0:00:16]}  Ra7 {[%clk 0:00:04]} 67. Kd5 {[%clk 0:00:15]}  Kxf5 {[%clk 0:00:04]} 68. e7 {[%clk 0:00:15]}  Rxe7 {[%clk 0:00:04]} 69. Kd6 {[%clk 0:00:16]}  Re4 {[%clk 0:00:04]} 70. Kd7 {[%clk 0:00:16]}  Rh4 {[%clk 0:00:05]} 71. Kd6 {[%clk 0:00:17]}  Rxh5 {[%clk 0:00:06]} 72. Kd7 {[%clk 0:00:18]}  Rg5 {[%clk 0:00:07]} 73. Kd6 {[%clk 0:00:19]}  h5 {[%clk 0:00:07]} 74. Kd7 {[%clk 0:00:20]}  h4 {[%clk 0:00:08]} 75. Kd6 {[%clk 0:00:21]}  h3 {[%clk 0:00:09]} 76. Kd7 {[%clk 0:00:22]}  h2 {[%clk 0:00:10]} 77. Kd6 {[%clk 0:00:22]}  h1=Q {[%clk 0:00:11]} 0-1


[Site "https://www.chess.com"]

[Event "Titled Tuesday Blitz May 10 Early 2022"]
[White "Pourkashiyan, Atousa"]
[Black "Navalgund, Niranjan"]
[WhiteFideId "12502014"]
[BlackFideId "5030854"]
[WhiteElo "2247"]
[BlackElo "2290"]
[Result "1-0"]
[Round "11"]
[TimeControl "180+1"]
[Date "2022.05.11"]
[WhiteClock "0:00:16"]
[BlackClock "0:00:09"]

1. e4 {[%clk 0:03:00]}  b6 {[%clk 0:02:38]} 2. d4 {[%clk 0:02:52]}  Bb7 {[%clk 0:02:38]} 3. Nc3 {[%clk 0:02:49]}  e6 {[%clk 0:02:38]} 4. Nf3 {[%clk 0:02:48]}  d6 {[%clk 0:02:38]} 5. Bd3 {[%clk 0:02:49]}  Nd7 {[%clk 0:02:38]} 6. O-O {[%clk 0:02:49]}  Ne7 {[%clk 0:02:38]} 7. Be3 {[%clk 0:02:49]}  g6 {[%clk 0:02:38]} 8. Qd2 {[%clk 0:02:49]}  Bg7 {[%clk 0:02:38]} 9. Bh6 {[%clk 0:02:49]}  O-O {[%clk 0:02:38]} 10. Bxg7 {[%clk 0:02:49]}  Kxg7 {[%clk 0:02:38]} 11. Rfe1 {[%clk 0:02:49]}  h6 {[%clk 0:02:38]} 12. Rad1 {[%clk 0:02:48]}  f5 {[%clk 0:02:35]} 13. d5 {[%clk 0:02:42]}  e5 {[%clk 0:02:34]} 14. exf5 {[%clk 0:02:32]}  Nxf5 {[%clk 0:02:35]} 15. Bxf5 {[%clk 0:02:29]}  gxf5 {[%clk 0:01:48]} 16. Re3 {[%clk 0:02:20]}  f4 {[%clk 0:01:41]} 17. Re2 {[%clk 0:02:14]}  Nf6 {[%clk 0:01:42]} 18. Nh4 {[%clk 0:02:09]}  Qd7 {[%clk 0:01:40]} 19. Qd3 {[%clk 0:01:58]}  Qg4 {[%clk 0:01:36]} 20. Nf5+ {[%clk 0:01:55]}  Kh8 {[%clk 0:01:36]} 21. Nxh6 {[%clk 0:01:31]}  Qh5 {[%clk 0:01:20]} 22. Nf5 {[%clk 0:01:28]}  Rg8 {[%clk 0:01:18]} 23. Ne7 {[%clk 0:00:43]}  Rg7 {[%clk 0:00:50]} 24. Qf5 {[%clk 0:00:43]}  f3 {[%clk 0:00:44]} 25. Re3 {[%clk 0:00:27]}  Rxg2+ {[%clk 0:00:41]} 26. Kf1 {[%clk 0:00:27]}  Rxf2+ {[%clk 0:00:21]} 27. Kxf2 {[%clk 0:00:24]}  Ng4+ {[%clk 0:00:21]} 28. Ke1 {[%clk 0:00:17]}  Qh4+ {[%clk 0:00:11]} 29. Kd2 {[%clk 0:00:16]}  Qf2+ {[%clk 0:00:11]} 30. Re2 {[%clk 0:00:17]}  fxe2 {[%clk 0:00:07]} 31. Qh5+ {[%clk 0:00:15]}  Kg7 {[%clk 0:00:07]} 32. Qxg4+ {[%clk 0:00:15]}  Kf7 {[%clk 0:00:07]} 33. Qxe2 {[%clk 0:00:14]}  Qxe2+ {[%clk 0:00:07]} 34. Nxe2 {[%clk 0:00:14]}  Kxe7 {[%clk 0:00:08]} 35. Rg1 {[%clk 0:00:15]}  Kf6 {[%clk 0:00:06]} 36. Rf1+ {[%clk 0:00:15]}  Kg5 {[%clk 0:00:06]} 37. c4 {[%clk 0:00:15]}  Rh8 {[%clk 0:00:06]} 38. Rf2 {[%clk 0:00:15]}  Rh3 {[%clk 0:00:06]} 39. Ng3 {[%clk 0:00:15]}  b5 {[%clk 0:00:06]} 40. b3 {[%clk 0:00:15]}  bxc4 {[%clk 0:00:06]} 41. bxc4 {[%clk 0:00:16]}  Ba6 {[%clk 0:00:07]} 42. Kc3 {[%clk 0:00:16]}  Bb7 {[%clk 0:00:07]} 43. Rf7 {[%clk 0:00:15]}  Rxh2 {[%clk 0:00:07]} 44. Rxc7 {[%clk 0:00:15]}  Bxd5 {[%clk 0:00:04]} 45. cxd5 {[%clk 0:00:15]}  Rh3 {[%clk 0:00:05]} 46. Rxa7 {[%clk 0:00:14]}  Rxg3+ {[%clk 0:00:05]} 47. Kc4 {[%clk 0:00:14]}  Rg2 {[%clk 0:00:05]} 48. a4 {[%clk 0:00:14]}  Ra2 {[%clk 0:00:05]} 49. Kb3 {[%clk 0:00:14]}  Ra1 {[%clk 0:00:05]} 50. Rd7 {[%clk 0:00:15]}  Kf5 {[%clk 0:00:05]} 51. Rxd6 {[%clk 0:00:15]}  e4 {[%clk 0:00:06]} 52. Re6 {[%clk 0:00:16]}  e3 {[%clk 0:00:06]} 53. Rxe3 {[%clk 0:00:15]}  Rd1 {[%clk 0:00:06]} 54. Kc4 {[%clk 0:00:15]}  Ra1 {[%clk 0:00:06]} 55. Kb5 {[%clk 0:00:15]}  Rd1 {[%clk 0:00:06]} 56. Kc5 {[%clk 0:00:15]}  Ra1 {[%clk 0:00:06]} 57. Kb5 {[%clk 0:00:15]}  Rd1 {[%clk 0:00:07]} 58. Rc3 {[%clk 0:00:15]}  Rxd5+ {[%clk 0:00:06]} 59. Rc5 {[%clk 0:00:14]}  Ke6 {[%clk 0:00:07]} 60. Rxd5 {[%clk 0:00:14]}  Kxd5 {[%clk 0:00:08]} 61. a5 {[%clk 0:00:15]}  Kd6 {[%clk 0:00:09]} 62. Kb6 {[%clk 0:00:15]}  Kd7 {[%clk 0:00:09]} 63. Kb7 {[%clk 0:00:16]}  Kd6 {[%clk 0:00:09]} 64. a6 {[%clk 0:00:16]} 1-0


[Site "https://www.chess.com"]

[Event "Titled Tuesday Blitz May 10 Early 2022"]
[White "Sahil, Tickoo"]
[Black "Iljin, Timofey"]
[WhiteFideId "5019710"]
[BlackFideId "14110180"]
[WhiteElo "2099"]
[BlackElo "2404"]
[Result "1/2-1/2"]
[Round "11"]
[TimeControl "180+1"]
[Date "2022.05.11"]
[WhiteClock "0:00:11"]
[BlackClock "0:01:25"]

1. d4 {[%clk 0:03:00]}  d5 {[%clk 0:03:00]} 2. c4 {[%clk 0:02:59]}  e5 {[%clk 0:02:58]} 3. dxe5 {[%clk 0:02:55]}  d4 {[%clk 0:02:59]} 4. Nf3 {[%clk 0:02:55]}  Nc6 {[%clk 0:03:00]} 5. Nbd2 {[%clk 0:02:42]}  Nge7 {[%clk 0:02:59]} 6. Nb3 {[%clk 0:02:38]}  Nf5 {[%clk 0:02:59]} 7. e4 {[%clk 0:02:26]}  dxe3 {[%clk 0:03:00]} 8. Qxd8+ {[%clk 0:02:25]}  Nxd8 {[%clk 0:03:01]} 9. fxe3 {[%clk 0:02:24]}  a5 {[%clk 0:02:59]} 10. Nbd4 {[%clk 0:02:19]}  Bb4+ {[%clk 0:02:56]} 11. Kf2 {[%clk 0:02:15]}  O-O {[%clk 0:02:55]} 12. Bd3 {[%clk 0:02:06]}  Ne7 {[%clk 0:02:50]} 13. a3 {[%clk 0:02:00]}  Bc5 {[%clk 0:02:48]} 14. Bd2 {[%clk 0:01:56]}  a4 {[%clk 0:02:47]} 15. Bb4 {[%clk 0:01:51]}  b6 {[%clk 0:02:40]} 16. Bxc5 {[%clk 0:01:49]}  bxc5 {[%clk 0:02:41]} 17. Nb5 {[%clk 0:01:49]}  Ne6 {[%clk 0:02:38]} 18. Be4 {[%clk 0:01:44]}  Rb8 {[%clk 0:02:37]} 19. Rab1 {[%clk 0:01:29]}  Ba6 {[%clk 0:02:35]} 20. Bd3 {[%clk 0:01:07]}  Nc6 {[%clk 0:02:27]} 21. Rhc1 {[%clk 0:01:03]}  Na5 {[%clk 0:02:26]} 22. Nd2 {[%clk 0:00:55]}  f6 {[%clk 0:02:24]} 23. exf6 {[%clk 0:00:53]}  Rxf6+ {[%clk 0:02:25]} 24. Ke2 {[%clk 0:00:54]}  Nc6 {[%clk 0:02:19]} 25. Rf1 {[%clk 0:00:52]}  Rh6 {[%clk 0:02:19]} 26. h3 {[%clk 0:00:52]}  Ne5 {[%clk 0:02:19]} 27. Nc3 {[%clk 0:00:45]}  Nxd3 {[%clk 0:02:17]} 28. Kxd3 {[%clk 0:00:45]}  Rd8+ {[%clk 0:02:18]} 29. Kc2 {[%clk 0:00:38]}  Rg6 {[%clk 0:02:19]} 30. Rf2 {[%clk 0:00:38]}  Rg3 {[%clk 0:02:18]} 31. Re1 {[%clk 0:00:36]}  h5 {[%clk 0:02:14]} 32. Nxa4 {[%clk 0:00:34]}  Bb7 {[%clk 0:02:11]} 33. Ree2 {[%clk 0:00:28]}  h4 {[%clk 0:01:57]} 34. Nc3 {[%clk 0:00:28]}  Ng5 {[%clk 0:01:53]} 35. b4 {[%clk 0:00:17]}  cxb4 {[%clk 0:01:52]} 36. axb4 {[%clk 0:00:18]}  Re8 {[%clk 0:01:53]} 37. Nd5 {[%clk 0:00:17]}  c6 {[%clk 0:01:47]} 38. Nc3 {[%clk 0:00:13]}  Rexe3 {[%clk 0:01:48]} 39. Rxe3 {[%clk 0:00:13]}  Rxe3 {[%clk 0:01:49]} 40. Rf4 {[%clk 0:00:12]}  Rg3 {[%clk 0:01:47]} 41. Rxh4 {[%clk 0:00:11]}  Rxg2 {[%clk 0:01:47]} 42. Rg4 {[%clk 0:00:12]}  Rxg4 {[%clk 0:01:33]} 43. hxg4 {[%clk 0:00:12]}  Kf7 {[%clk 0:01:34]} 44. b5 {[%clk 0:00:12]}  cxb5 {[%clk 0:01:34]} 45. cxb5 {[%clk 0:00:13]}  Ke6 {[%clk 0:01:34]} 46. Kd3 {[%clk 0:00:13]}  Ke5 {[%clk 0:01:34]} 47. Ke3 {[%clk 0:00:12]}  Nf7 {[%clk 0:01:34]} 48. Nc4+ {[%clk 0:00:11]}  Ke6 {[%clk 0:01:33]} 49. Kf4 {[%clk 0:00:11]}  g5+ {[%clk 0:01:31]} 50. Ke3 {[%clk 0:00:11]}  Nh6 {[%clk 0:01:29]} 51. Ne4 {[%clk 0:00:09]}  Nxg4+ {[%clk 0:01:28]} 52. Kd4 {[%clk 0:00:09]}  Bxe4 {[%clk 0:01:25]} 53. Kxe4 {[%clk 0:00:10]}  Nf6+ {[%clk 0:01:26]} 54. Kf3 {[%clk 0:00:09]}  Kd5 {[%clk 0:01:25]} 55. Ne3+ {[%clk 0:00:10]}  Kc5 {[%clk 0:01:26]} 56. Ng4 {[%clk 0:00:10]}  Nxg4 {[%clk 0:01:24]} 57. Kxg4 {[%clk 0:00:10]}  Kxb5 {[%clk 0:01:25]} 58. Kxg5 {[%clk 0:00:11]} 1/2-1/2


[Site "https://www.chess.com"]

[Event "Titled Tuesday Blitz May 10 Early 2022"]
[White "Samant Aditya S"]
[Black "Sadykov, Ramil"]
[WhiteFideId "35080580"]
[BlackFideId "24113590"]
[WhiteElo "1916"]
[BlackElo "2280"]
[Result "0-1"]
[Round "11"]
[TimeControl "180+1"]
[Date "2022.05.11"]
[WhiteClock "0:00:09"]
[BlackClock "0:00:39"]

1. e4 {[%clk 0:03:00]}  e5 {[%clk 0:02:59]} 2. Nf3 {[%clk 0:03:01]}  Nf6 {[%clk 0:02:59]} 3. Nxe5 {[%clk 0:03:00]}  Nxe4 {[%clk 0:03:00]} 4. Qe2 {[%clk 0:02:59]}  Qe7 {[%clk 0:03:00]} 5. Qxe4 {[%clk 0:02:59]}  d6 {[%clk 0:03:01]} 6. d4 {[%clk 0:03:00]}  dxe5 {[%clk 0:03:01]} 7. dxe5 {[%clk 0:02:55]}  Nc6 {[%clk 0:03:01]} 8. Bf4 {[%clk 0:02:54]}  g5 {[%clk 0:03:01]} 9. Bg3 {[%clk 0:02:53]}  f5 {[%clk 0:03:01]} 10. Qa4 {[%clk 0:02:15]}  f4 {[%clk 0:02:57]} 11. Bb5 {[%clk 0:02:15]}  Qxe5+ {[%clk 0:02:46]} 12. Kd1 {[%clk 0:02:14]}  Qd6+ {[%clk 0:02:31]} 13. Nd2 {[%clk 0:02:13]}  fxg3 {[%clk 0:02:22]} 14. Re1+ {[%clk 0:02:06]}  Be6 {[%clk 0:02:17]} 15. Bxc6+ {[%clk 0:01:24]}  bxc6 {[%clk 0:02:14]} 16. Qg4 {[%clk 0:00:53]}  Kd7 {[%clk 0:01:55]} 17. Qe2 {[%clk 0:00:40]}  gxh2 {[%clk 0:01:48]} 18. Kc1 {[%clk 0:00:39]}  Re8 {[%clk 0:01:38]} 19. Ne4 {[%clk 0:00:36]}  Qf4+ {[%clk 0:01:36]} 20. Kb1 {[%clk 0:00:36]}  Bd6 {[%clk 0:01:23]} 21. g3 {[%clk 0:00:18]}  Qf5 {[%clk 0:01:17]} 22. g4 {[%clk 0:00:12]}  Qf4 {[%clk 0:01:11]} 23. a4 {[%clk 0:00:12]}  Bd5 {[%clk 0:01:10]} 24. f3 {[%clk 0:00:11]}  Bxe4 {[%clk 0:01:08]} 25. fxe4 {[%clk 0:00:12]}  Rxe4 {[%clk 0:01:08]} 26. Qd1 {[%clk 0:00:09]}  Rxe1 {[%clk 0:01:04]} 27. Qxe1 {[%clk 0:00:10]}  Re8 {[%clk 0:01:04]} 28. Qd1 {[%clk 0:00:09]}  Qb4 {[%clk 0:00:48]} 29. c3 {[%clk 0:00:08]}  Qe4+ {[%clk 0:00:38]} 30. Ka2 {[%clk 0:00:09]}  Qd5+ {[%clk 0:00:38]} 31. Qxd5 {[%clk 0:00:09]}  cxd5 {[%clk 0:00:39]} 0-1


[Site "https://www.chess.com"]

[Event "Titled Tuesday Blitz May 10 Early 2022"]
[White "Samunenkov, Ihor"]
[Black "Azarov, Sergei"]
[WhiteFideId "14187086"]
[BlackFideId "13501470"]
[WhiteElo "2409"]
[BlackElo "2494"]
[Result "1/2-1/2"]
[Round "11"]
[TimeControl "180+1"]
[Date "2022.05.10"]
[WhiteClock "0:00:04"]
[BlackClock "0:00:02"]

1. d4 {[%clk 0:03:00]}  f5 {[%clk 0:02:59]} 2. Nc3 {[%clk 0:03:00]}  Nf6 {[%clk 0:02:56]} 3. Bg5 {[%clk 0:03:00]}  d5 {[%clk 0:02:56]} 4. Bxf6 {[%clk 0:03:00]}  exf6 {[%clk 0:02:56]} 5. e3 {[%clk 0:03:00]}  Be6 {[%clk 0:02:55]} 6. Bd3 {[%clk 0:03:00]}  Nc6 {[%clk 0:02:48]} 7. a3 {[%clk 0:02:53]}  Qd7 {[%clk 0:02:47]} 8. Nf3 {[%clk 0:02:52]}  Ne7 {[%clk 0:02:43]} 9. Ne2 {[%clk 0:02:50]}  Nc8 {[%clk 0:02:40]} 10. Nf4 {[%clk 0:02:34]}  Bf7 {[%clk 0:02:39]} 11. h4 {[%clk 0:02:33]}  Nd6 {[%clk 0:02:37]} 12. Qe2 {[%clk 0:02:29]}  O-O-O {[%clk 0:02:34]} 13. b3 {[%clk 0:02:23]}  Be7 {[%clk 0:02:15]} 14. c4 {[%clk 0:02:15]}  c6 {[%clk 0:02:08]} 15. c5 {[%clk 0:01:50]}  Ne4 {[%clk 0:02:07]} 16. b4 {[%clk 0:01:51]}  Qc7 {[%clk 0:01:51]} 17. Bc2 {[%clk 0:01:13]}  Rhe8 {[%clk 0:01:48]} 18. O-O {[%clk 0:01:08]}  Bf8 {[%clk 0:01:45]} 19. a4 {[%clk 0:01:01]}  g5 {[%clk 0:01:41]} 20. hxg5 {[%clk 0:00:58]}  fxg5 {[%clk 0:01:41]} 21. Nd3 {[%clk 0:00:59]}  Bh5 {[%clk 0:01:41]} 22. b5 {[%clk 0:00:50]}  Bg7 {[%clk 0:01:40]} 23. bxc6 {[%clk 0:00:43]}  bxc6 {[%clk 0:01:21]} 24. Nb4 {[%clk 0:00:43]}  Re6 {[%clk 0:01:01]} 25. Qa6+ {[%clk 0:00:29]}  Kd7 {[%clk 0:00:59]} 26. Bxe4 {[%clk 0:00:29]}  fxe4 {[%clk 0:00:57]} 27. Nxg5 {[%clk 0:00:15]}  Rg6 {[%clk 0:00:55]} 28. f4 {[%clk 0:00:11]}  exf3 {[%clk 0:00:49]} 29. Nxf3 {[%clk 0:00:11]}  Qg3 {[%clk 0:00:40]} 30. Ra2 {[%clk 0:00:05]}  Bxf3 {[%clk 0:00:34]} 31. Qb7+ {[%clk 0:00:05]}  Ke8 {[%clk 0:00:16]} 32. Nxc6 {[%clk 0:00:05]}  Qxg2+ {[%clk 0:00:08]} 33. Rxg2 {[%clk 0:00:03]}  Rxg2+ {[%clk 0:00:09]} 34. Kh1 {[%clk 0:00:04]}  Rf2+ {[%clk 0:00:07]} 35. Kg1 {[%clk 0:00:03]}  Rg2+ {[%clk 0:00:07]} 36. Kh1 {[%clk 0:00:04]}  Rf2+ {[%clk 0:00:02]} 37. Kg1 {[%clk 0:00:04]}  Rg2+ {[%clk 0:00:02]} 1/2-1/2


[Site "https://www.chess.com"]